[Event "Live Chess"]
[Site "Chess.com"]
[Date "2024.06.02"]
[Round "-"]
[White "Dhaydon19"]
[Black "yarek"]
[Result "1-0"]
[WhiteElo "2665"]
[BlackElo "1748"]
[TimeControl "300"]
[EndTime "6:27:28 PDT"]
[Termination "Dhaydon19 won by resignation"]

1. d4 {[%clk 0:04:56.1]} 1... g6 {[%clk 0:04:59.3]} 2. c3 {[%clk 0:04:55.6]}
2... Bg7 {[%clk 0:04:58.4]} 3. Nf3 {[%clk 0:04:55.3]} 3... c6 {[%clk 0:04:57.3]}
4. g3 {[%clk 0:04:54.9]} 4... d5 {[%clk 0:04:56.5]} 5. Bg2 {[%clk 0:04:54.6]}
5... Nf6 {[%clk 0:04:55.2]} 6. O-O {[%clk 0:04:54.3]} 6... O-O {[%clk
0:04:53.1]} 7. Nbd2 {[%clk 0:04:53.9]} 7... Nbd7 {[%clk 0:04:50.9]} 8. Re1
{[%clk 0:04:53.5]} 8... Re8 {[%clk 0:04:49.2]} 9. e4 {[%clk 0:04:52.5]} 9...
dxe4 {[%clk 0:04:45.3]} 10. Nxe4 {[%clk 0:04:52.1]} 10... Nxe4 {[%clk
0:04:43.8]} 11. Rxe4 {[%clk 0:04:51.8]} 11... Nf6 {[%clk 0:04:42.8]} 12. Re1
{[%clk 0:04:50.6]} 12... Bg4 {[%clk 0:04:40.4]} 13. Qb3 {[%clk 0:04:49.1]} 13...
Bxf3 {[%clk 0:04:37]} 14. Bxf3 {[%clk 0:04:47.7]} 14... Qc7 {[%clk 0:04:36.4]}
15. Bf4 {[%clk 0:04:45.9]} 15... Qd7 {[%clk 0:04:34.8]} 16. Rad1 {[%clk
0:04:43.7]} 16... e6 {[%clk 0:04:27.6]} 17. Kg2 {[%clk 0:04:42.4]} 17... Nd5
{[%clk 0:04:25.6]} 18. Bd2 {[%clk 0:04:39.5]} 18... Rac8 {[%clk 0:04:08.9]} 19.
c4 {[%clk 0:04:36.2]} 19... Nb6 {[%clk 0:03:57.4]} 20. Bc3 {[%clk 0:04:34.2]}
20... Qc7 {[%clk 0:03:32.6]} 21. a4 {[%clk 0:04:30.5]} 21... Nd7 {[%clk
0:03:18.3]} 22. a5 {[%clk 0:04:23.8]} 22... a6 {[%clk 0:03:13.4]} 23. Qc2 {[%clk
0:04:21.1]} 23... b5 {[%clk 0:02:54.9]} 24. axb6 {[%clk 0:04:19.1]} 24... Qxb6
{[%clk 0:02:53.9]} 25. c5 {[%clk 0:04:17.6]} 25... Qb5 {[%clk 0:02:42.9]} 26.
Be2 {[%clk 0:04:15.7]} 26... Qb7 {[%clk 0:02:41.3]} 27. Qa4 {[%clk 0:04:14.5]}
27... Ra8 {[%clk 0:02:37.9]} 28. Bf3 {[%clk 0:04:05.5]} 28... Nb8 {[%clk
0:02:18]} 29. d5 {[%clk 0:03:59.3]} 29... Qb5 {[%clk 0:02:08.1]} 30. Qxb5 {[%clk
0:03:56.8]} 30... axb5 {[%clk 0:02:00.7]} 31. Bxg7 {[%clk 0:03:52.7]} 31... Kxg7
{[%clk 0:01:58.1]} 32. dxc6 {[%clk 0:03:52.2]} 32... Ra6 {[%clk 0:01:51.5]} 33.
c7 {[%clk 0:03:48.9]} 33... Nc6 {[%clk 0:01:47]} 34. Rd6 {[%clk 0:03:43]} 34...
Nb4 {[%clk 0:01:29.6]} 35. Red1 {[%clk 0:03:34]} 35... Raa8 {[%clk 0:01:21.9]}
36. Bxa8 {[%clk 0:03:32]} 1-0

[Event "Live Chess"]
[Site "Chess.com"]
[Date "2024.06.02"]
[Round "-"]
[White "DoYouLikeCurry"]
[Black "r0ad_t0-gm"]
[Result "0-1"]
[WhiteElo "1446"]
[BlackElo "2305"]
[TimeControl "300"]
[EndTime "6:27:37 PDT"]
[Termination "r0ad_t0-gm won by resignation"]

1. e4 {[%clk 0:04:56.5]} 1... c5 {[%clk 0:04:58.8]} 2. a3 {[%clk 0:04:55]} 2...
g6 {[%clk 0:04:57.1]} 3. Nc3 {[%clk 0:04:52.7]} 3... Bg7 {[%clk 0:04:56.3]} 4.
Bc4 {[%clk 0:04:50.7]} 4... Nc6 {[%clk 0:04:52.1]} 5. d3 {[%clk 0:04:46]} 5...
e6 {[%clk 0:04:51.2]} 6. Ba2 {[%clk 0:04:44.2]} 6... h6 {[%clk 0:04:47.9]} 7. h4
{[%clk 0:04:39.5]} 7... Nge7 {[%clk 0:04:41.4]} 8. Bd2 {[%clk 0:04:10]} 8... d5
{[%clk 0:04:39.5]} 9. g4 {[%clk 0:03:56.7]} 9... b6 {[%clk 0:04:24.9]} 10. f4
{[%clk 0:03:16.4]} 10... dxe4 {[%clk 0:04:21.9]} 11. dxe4 {[%clk 0:03:03.3]}
11... Bb7 {[%clk 0:04:21.2]} 12. f5 {[%clk 0:02:48.3]} 12... Nd4 {[%clk
0:04:17.7]} 13. fxg6 {[%clk 0:02:27]} 13... Nxg6 {[%clk 0:04:13.4]} 14. h5
{[%clk 0:02:19.3]} 14... Ne7 {[%clk 0:03:51.9]} 15. g5 {[%clk 0:02:10.3]} 15...
Qc7 {[%clk 0:03:45.9]} 16. Nge2 {[%clk 0:01:29]} 16... Nf3+ {[%clk 0:03:44.4]}
17. Kf2 {[%clk 0:01:14.9]} 17... Nxd2 {[%clk 0:03:42.9]} 18. Qxd2 {[%clk
0:01:11.6]} 18... Rd8 {[%clk 0:03:41.1]} 19. Qf4 {[%clk 0:01:05.4]} 19... Qxf4+
{[%clk 0:03:39.2]} 20. Nxf4 {[%clk 0:01:04]} 20... hxg5 {[%clk 0:03:38.2]} 21.
Nfe2 {[%clk 0:00:42.1]} 21... Nc6 {[%clk 0:03:28.6]} 22. Nb5 {[%clk 0:00:34.6]}
22... Nd4 {[%clk 0:03:19.6]} 23. Nc7+ {[%clk 0:00:30.6]} 23... Kd7 {[%clk
0:03:17.7]} 24. Nxd4 {[%clk 0:00:20.4]} 24... Bxd4+ {[%clk 0:03:17.6]} 25. Kf3
{[%clk 0:00:18.6]} 25... Kxc7 {[%clk 0:03:17.5]} 26. Rad1 {[%clk 0:00:15.9]}
26... f5 {[%clk 0:03:16.7]} 27. c3 {[%clk 0:00:14.9]} 27... Bxe4+ {[%clk
0:03:16.1]} 28. Ke2 {[%clk 0:00:13]} 28... Bxh1 {[%clk 0:03:16]} 29. Rxh1 {[%clk
0:00:10.9]} 29... Bf6 {[%clk 0:03:14.6]} 30. Bxe6 {[%clk 0:00:09.3]} 30... Rde8
{[%clk 0:03:13.7]} 0-1

[Event "Live Chess"]
[Site "Chess.com"]
[Date "2024.06.02"]
[Round "-"]
[White "Ferrarifan27"]
[Black "beltmanjb"]
[Result "1-0"]
[WhiteElo "2139"]
[BlackElo "1704"]
[TimeControl "300"]
[EndTime "6:27:44 PDT"]
[Termination "Ferrarifan27 won by resignation"]

1. e4 {[%clk 0:04:58.9]} 1... c5 {[%clk 0:04:59.3]} 2. Nf3 {[%clk 0:04:57.4]}
2... Nc6 {[%clk 0:04:58.5]} 3. b4 {[%clk 0:04:55.6]} 3... cxb4 {[%clk
0:04:55.1]} 4. d4 {[%clk 0:04:54.7]} 4... d5 {[%clk 0:04:53]} 5. exd5 {[%clk
0:04:53.3]} 5... Nf6 {[%clk 0:04:52.6]} 6. dxc6 {[%clk 0:04:51.3]} 6... bxc6
{[%clk 0:04:47.3]} 7. Bb2 {[%clk 0:04:47.4]} 7... e6 {[%clk 0:04:31.7]} 8. Nbd2
{[%clk 0:04:43.1]} 8... Be7 {[%clk 0:04:23.1]} 9. Bd3 {[%clk 0:04:41.2]} 9...
O-O {[%clk 0:04:19.9]} 10. O-O {[%clk 0:04:39.6]} 10... Bb7 {[%clk 0:04:16.3]}
11. Ne4 {[%clk 0:04:37.6]} 1-0

[Event "Live Chess"]
[Site "Chess.com"]
[Date "2024.06.02"]
[Round "-"]
[White "Step-S"]
[Black "CheckThis4"]
[Result "0-1"]
[WhiteElo "1248"]
[BlackElo "2688"]
[TimeControl "300"]
[EndTime "6:27:59 PDT"]
[Termination "CheckThis4 won by resignation"]

1. e4 {[%clk 0:04:57.3]} 1... Nc6 {[%clk 0:04:58.5]} 2. d4 {[%clk 0:04:55.4]}
2... d5 {[%clk 0:04:57.2]} 3. f3 {[%clk 0:04:52.3]} 3... e5 {[%clk 0:04:49.3]}
4. dxe5 {[%clk 0:04:39.4]} 4... Bc5 {[%clk 0:04:41.5]} 5. exd5 {[%clk
0:04:33.6]} 5... Nxe5 {[%clk 0:04:35.3]} 6. Nc3 {[%clk 0:04:13.1]} 6... Bxg1
{[%clk 0:04:15.9]} 7. Rxg1 {[%clk 0:04:10.4]} 7... Qh4+ {[%clk 0:04:15.5]} 8.
Ke2 {[%clk 0:03:55.4]} 8... Nf6 {[%clk 0:04:07.7]} 9. Be3 {[%clk 0:03:36.8]}
9... O-O {[%clk 0:04:04.5]} 10. Qd4 {[%clk 0:03:31.6]} 10... Nfg4 {[%clk
0:03:51.7]} 11. g3 {[%clk 0:02:54.6]} 11... Qxh2+ {[%clk 0:03:44.2]} 12. Rg2
{[%clk 0:02:44.9]} 12... Qh5 {[%clk 0:03:42.6]} 13. fxg4 {[%clk 0:02:29.6]}
13... Bxg4+ {[%clk 0:03:40.4]} 14. Kd2 {[%clk 0:02:24.1]} 14... Nf3+ {[%clk
0:03:38.4]} 0-1

[Event "Live Chess"]
[Site "Chess.com"]
[Date "2024.06.02"]
[Round "-"]
[White "14141409"]
[Black "KeithArkell"]
[Result "0-1"]
[WhiteElo "2539"]
[BlackElo "2437"]
[TimeControl "300"]
[EndTime "6:28:06 PDT"]
[Termination "KeithArkell won by resignation"]

1. e4 {[%clk 0:04:56.5]} 1... c6 {[%clk 0:04:59.3]} 2. d4 {[%clk 0:04:54.3]}
2... d5 {[%clk 0:04:59.2]} 3. e5 {[%clk 0:04:51.9]} 3... c5 {[%clk 0:04:56.4]}
4. dxc5 {[%clk 0:04:50]} 4... Nc6 {[%clk 0:04:55.4]} 5. Nf3 {[%clk 0:04:46.2]}
5... Bg4 {[%clk 0:04:54]} 6. Be2 {[%clk 0:04:43.1]} 6... Bxf3 {[%clk 0:04:52.4]}
7. Bxf3 {[%clk 0:04:41.9]} 7... e6 {[%clk 0:04:52]} 8. Bf4 {[%clk 0:04:38.5]}
8... Bxc5 {[%clk 0:04:50.4]} 9. O-O {[%clk 0:04:36.6]} 9... Nge7 {[%clk
0:04:48.8]} 10. Re1 {[%clk 0:04:34.8]} 10... Ng6 {[%clk 0:04:47.5]} 11. Bg3
{[%clk 0:04:33.3]} 11... Bd4 {[%clk 0:04:46.2]} 12. c3 {[%clk 0:04:26.7]} 12...
Bxe5 {[%clk 0:04:44.9]} 13. Bh5 {[%clk 0:04:20.5]} 13... Bxg3 {[%clk 0:04:43.2]}
14. hxg3 {[%clk 0:04:11.8]} 14... O-O {[%clk 0:04:40]} 15. Nd2 {[%clk
0:04:06.5]} 15... b5 {[%clk 0:04:35.5]} 16. a3 {[%clk 0:04:03.3]} 16... Rb8
{[%clk 0:04:34.7]} 17. Nb3 {[%clk 0:04:01.9]} 17... a5 {[%clk 0:04:27.2]} 18.
Nd4 {[%clk 0:03:59.7]} 18... Nxd4 {[%clk 0:04:26.1]} 19. cxd4 {[%clk 0:03:58.1]}
19... Qf6 {[%clk 0:04:21.7]} 20. Bxg6 {[%clk 0:03:55.3]} 20... hxg6 {[%clk
0:04:19.5]} 21. Qd3 {[%clk 0:03:52.3]} 21... Rfc8 {[%clk 0:04:17.8]} 22. g4
{[%clk 0:03:50.3]} 22... Rc4 {[%clk 0:04:16.6]} 23. Rad1 {[%clk 0:03:48.3]}
23... Rbc8 {[%clk 0:04:14.5]} 24. Rd2 {[%clk 0:03:46.8]} 24... Rc1 {[%clk
0:04:08.9]} 25. Rxc1 {[%clk 0:03:42.5]} 25... Rxc1+ {[%clk 0:04:07.7]} 26. Rd1
{[%clk 0:03:42.1]} 26... Rxd1+ {[%clk 0:04:06]} 27. Qxd1 {[%clk 0:03:40.5]}
27... Qf4 {[%clk 0:04:00.7]} 28. g3 {[%clk 0:03:38.8]} 28... Qe4 {[%clk
0:03:59]} 29. Qd2 {[%clk 0:03:30.6]} 29... a4 {[%clk 0:03:54.3]} 30. Qb4 {[%clk
0:03:15.5]} 30... Qxg4 {[%clk 0:03:49.9]} 31. Qxb5 {[%clk 0:03:13.5]} 31... Qxd4
{[%clk 0:03:49]} 32. Qe8+ {[%clk 0:03:10.5]} 32... Kh7 {[%clk 0:03:48.2]} 33.
Qxf7 {[%clk 0:03:08.8]} 33... Qe4 {[%clk 0:03:20.2]} 34. Qd7 {[%clk 0:02:44.9]}
34... d4 {[%clk 0:02:32.7]} 35. Qxa4 {[%clk 0:02:33.4]} 35... g5 {[%clk
0:02:30]} 36. Qd1 {[%clk 0:02:28.9]} 36... Kg6 {[%clk 0:02:25.1]} 37. a4 {[%clk
0:02:13.3]} 37... d3 {[%clk 0:02:23.8]} 38. f3 {[%clk 0:02:11.8]} 38... Qe3+
{[%clk 0:02:20.7]} 39. Kf1 {[%clk 0:02:10.2]} 39... d2 {[%clk 0:02:20.2]} 40. a5
{[%clk 0:02:03.9]} 40... Qd3+ {[%clk 0:02:12.7]} 41. Kg2 {[%clk 0:01:52.6]}
41... g4 {[%clk 0:01:48.6]} 42. fxg4 {[%clk 0:01:47.1]} 42... e5 {[%clk
0:01:45.3]} 43. a6 {[%clk 0:01:42.2]} 43... e4 {[%clk 0:01:36.9]} 44. a7 {[%clk
0:00:41.9]} 44... Qf3+ {[%clk 0:01:34.1]} 45. Kh2 {[%clk 0:00:39.8]} 45... Qxd1
{[%clk 0:01:26]} 46. a8=Q {[%clk 0:00:37.6]} 46... Qe2+ {[%clk 0:01:24.4]} 47.
Kh3 {[%clk 0:00:36.5]} 47... Qf1+ {[%clk 0:01:23]} 48. Kh2 {[%clk 0:00:35]}
48... d1=Q {[%clk 0:01:09.5]} 49. Qe8+ {[%clk 0:00:31.9]} 49... Kf6 {[%clk
0:01:07.8]} 50. Qf8+ {[%clk 0:00:28.2]} 50... Ke6 {[%clk 0:01:05.9]} 51. Qe8+
{[%clk 0:00:27.3]} 51... Kd5 {[%clk 0:01:05.3]} 52. Qd7+ {[%clk 0:00:25.4]}
52... Kc4 {[%clk 0:01:04.7]} 53. Qc6+ {[%clk 0:00:23.1]} 53... Kd3 {[%clk
0:01:03.9]} 54. Qd5+ {[%clk 0:00:21.6]} 54... Ke3 {[%clk 0:01:02.9]} 55. Qg5+
{[%clk 0:00:19.4]} 55... Ke2 {[%clk 0:01:01.9]} 56. Qb5+ {[%clk 0:00:16.9]}
56... Qd3 {[%clk 0:01:01.1]} 57. Qb4 {[%clk 0:00:11.2]} 57... Qf2+ {[%clk
0:00:59.4]} 0-1

[Event "Live Chess"]
[Site "Chess.com"]
[Date "2024.06.02"]
[Round "-"]
[White "upoe610"]
[Black "NAZRIZ1977"]
[Result "1-0"]
[WhiteElo "2155"]
[BlackElo "2076"]
[TimeControl "300"]
[EndTime "6:28:11 PDT"]
[Termination "upoe610 won by resignation"]

1. c4 {[%clk 0:04:55.1]} 1... b6 {[%clk 0:04:56.3]} 2. d4 {[%clk 0:04:53.7]}
2... Bb7 {[%clk 0:04:54.4]} 3. Nc3 {[%clk 0:04:51.2]} 3... e6 {[%clk 0:04:53.1]}
4. a3 {[%clk 0:04:50.7]} 4... f5 {[%clk 0:04:51]} 5. d5 {[%clk 0:04:46.1]} 5...
e5 {[%clk 0:04:46.5]} 6. e4 {[%clk 0:04:42.1]} 6... Nf6 {[%clk 0:04:43.5]} 7.
exf5 {[%clk 0:04:40.1]} 7... a5 {[%clk 0:04:42.3]} 8. g4 {[%clk 0:04:38.5]} 8...
Na6 {[%clk 0:04:23.6]} 9. g5 {[%clk 0:04:37.7]} 9... Ng8 {[%clk 0:04:22.1]} 10.
Qh5+ {[%clk 0:04:36.3]} 10... Ke7 {[%clk 0:04:17.2]} 11. f6+ {[%clk 0:04:19.4]}
11... gxf6 {[%clk 0:04:15.2]} 12. gxf6+ {[%clk 0:04:19.3]} 12... Nxf6 {[%clk
0:04:13.3]} 13. Bg5 {[%clk 0:04:14]} 13... h6 {[%clk 0:04:09]} 14. Bxf6+ {[%clk
0:04:11.5]} 14... Kxf6 {[%clk 0:04:08.1]} 15. Ne4+ {[%clk 0:04:10.6]} 15... Kg7
{[%clk 0:04:03.8]} 16. Qxe5+ {[%clk 0:04:08.5]} 1-0

[Event "Live Chess"]
[Site "Chess.com"]
[Date "2024.06.02"]
[Round "-"]
[White "Dashman93"]
[Black "IgorSchukin"]
[Result "1-0"]
[WhiteElo "2133"]
[BlackElo "1784"]
[TimeControl "300"]
[EndTime "6:28:15 PDT"]
[Termination "Dashman93 won by resignation"]

1. d4 {[%clk 0:04:59.4]} 1... d5 {[%clk 0:04:58.7]} 2. c4 {[%clk 0:04:57.7]}
2... e5 {[%clk 0:04:57.3]} 3. dxe5 {[%clk 0:04:55.5]} 3... d4 {[%clk 0:04:56.4]}
4. Nf3 {[%clk 0:04:54.9]} 4... Nc6 {[%clk 0:04:55.9]} 5. g3 {[%clk 0:04:54.5]}
5... Bg4 {[%clk 0:04:55]} 6. Bg2 {[%clk 0:04:54.1]} 6... Qd7 {[%clk 0:04:54.2]}
7. O-O {[%clk 0:04:53.5]} 7... O-O-O {[%clk 0:04:53.3]} 8. b4 {[%clk 0:04:52.7]}
8... Bxb4 {[%clk 0:04:43.9]} 9. Ba3 {[%clk 0:04:51.2]} 9... Bxa3 {[%clk
0:04:41.5]} 10. Nxa3 {[%clk 0:04:51.1]} 10... Bh3 {[%clk 0:04:40]} 11. Rb1
{[%clk 0:04:48.1]} 11... Bxg2 {[%clk 0:04:39]} 12. Kxg2 {[%clk 0:04:48]} 12...
h5 {[%clk 0:04:35.3]} 13. Qb3 {[%clk 0:04:43.2]} 13... b6 {[%clk 0:04:33.5]} 14.
Qb5 {[%clk 0:04:39.4]} 14... Nge7 {[%clk 0:04:25.2]} 15. Rfd1 {[%clk 0:04:29]}
15... Ng6 {[%clk 0:04:21.1]} 16. Qa6+ {[%clk 0:04:21.7]} 16... Kb8 {[%clk
0:04:19.4]} 17. Nb5 {[%clk 0:04:21.6]} 17... Qg4 {[%clk 0:04:04.6]} 18. Rxd4
{[%clk 0:04:16.4]} 18... Rxd4 {[%clk 0:04:01.4]} 19. Nfxd4 {[%clk 0:04:15.2]}
19... Ngxe5 {[%clk 0:03:26.9]} 20. f3 {[%clk 0:04:10.4]} 20... Qg6 {[%clk
0:03:17.4]} 21. Rb3 {[%clk 0:04:01.2]} 21... h4 {[%clk 0:03:15.3]} 22. f4 {[%clk
0:03:48.8]} 22... hxg3 {[%clk 0:03:04.9]} 23. hxg3 {[%clk 0:03:37.5]} 23... Ng4
{[%clk 0:02:39.4]} 24. Nxc6+ {[%clk 0:03:35.6]} 24... Qxc6+ {[%clk 0:02:36.8]}
25. Rf3 {[%clk 0:03:33.6]} 25... Rh2+ {[%clk 0:02:31.7]} 26. Kf1 {[%clk
0:03:28.7]} 26... Qb7 {[%clk 0:02:19.4]} 27. Qxb7+ {[%clk 0:03:27.1]} 27... Kxb7
{[%clk 0:02:18.3]} 28. Rd3 {[%clk 0:03:26.2]} 28... a6 {[%clk 0:02:07]} 29. Nd4
{[%clk 0:03:22.7]} 29... g6 {[%clk 0:01:59.4]} 30. Nf3 {[%clk 0:03:21.3]} 30...
Rh3 {[%clk 0:01:49.7]} 31. Kg2 {[%clk 0:03:19.7]} 31... Rh8 {[%clk 0:01:46.6]}
32. Rd7 {[%clk 0:03:18.2]} 32... f5 {[%clk 0:01:33.6]} 33. Rg7 {[%clk
0:03:16.4]} 33... Ne3+ {[%clk 0:01:28.4]} 34. Kf2 {[%clk 0:03:14.7]} 34... Nxc4
{[%clk 0:01:27.4]} 35. Rxg6 {[%clk 0:03:12.8]} 35... b5 {[%clk 0:01:21.3]} 36.
Rf6 {[%clk 0:03:11.5]} 36... Nd6 {[%clk 0:01:19.1]} 37. Nd4 {[%clk 0:03:09.7]}
37... Rh2+ {[%clk 0:01:16.9]} 38. Kf3 {[%clk 0:03:08.6]} 38... Rh5 {[%clk
0:01:07.4]} 39. g4 {[%clk 0:02:52.3]} 39... Rh3+ {[%clk 0:01:01.4]} 40. Kg2
{[%clk 0:02:51.5]} 40... fxg4 {[%clk 0:01:00.1]} 41. Re6 {[%clk 0:02:48.8]}
41... b4 {[%clk 0:00:50.5]} 42. e4 {[%clk 0:02:47]} 42... Rd3 {[%clk 0:00:40.1]}
43. Nb3 {[%clk 0:02:42.7]} 43... Nc4 {[%clk 0:00:29.6]} 44. Nc5+ {[%clk
0:02:41.2]} 1-0

[Event "Live Chess"]
[Site "Chess.com"]
[Date "2024.06.02"]
[Round "-"]
[White "f4nomore"]
[Black "TheSmoulderingMaster"]
[Result "0-1"]
[WhiteElo "1279"]
[BlackElo "1765"]
[TimeControl "300"]
[EndTime "6:28:21 PDT"]
[Termination "TheSmoulderingMaster won by resignation"]

1. Nc3 {[%clk 0:04:56.1]} 1... d5 {[%clk 0:04:58.5]} 2. d4 {[%clk 0:04:54.8]}
2... Nf6 {[%clk 0:04:56.6]} 3. Bg5 {[%clk 0:04:52.4]} 3... c6 {[%clk 0:04:54.2]}
4. Bxf6 {[%clk 0:04:51.4]} 4... exf6 {[%clk 0:04:53.1]} 5. Nf3 {[%clk
0:04:50.8]} 5... Bb4 {[%clk 0:04:51.5]} 6. e3 {[%clk 0:04:47.4]} 6... O-O {[%clk
0:04:50.3]} 7. Be2 {[%clk 0:04:45.3]} 7... Bg4 {[%clk 0:04:49.1]} 8. O-O {[%clk
0:04:43.3]} 8... Nd7 {[%clk 0:04:47.1]} 9. a3 {[%clk 0:04:41]} 9... Ba5 {[%clk
0:04:45.5]} 10. b4 {[%clk 0:04:39.1]} 10... Bc7 {[%clk 0:04:44.4]} 11. h3 {[%clk
0:04:34.9]} 11... Bh5 {[%clk 0:04:42.6]} 12. Nh2 {[%clk 0:04:31.1]} 12... Rc8
{[%clk 0:04:38.1]} 13. Bxh5 {[%clk 0:04:27.9]} 13... Nb6 {[%clk 0:04:36.2]} 14.
Bg4 {[%clk 0:04:24.2]} 14... Qd6 {[%clk 0:04:34]} 15. f4 {[%clk 0:04:20.4]}
15... Rce8 {[%clk 0:04:31.3]} 16. Qd3 {[%clk 0:04:09.4]} 16... Nc4 {[%clk
0:04:27.5]} 17. Rae1 {[%clk 0:04:06.3]} 17... Re7 {[%clk 0:04:24.5]} 18. b5
{[%clk 0:04:02.3]} 18... Rfe8 {[%clk 0:04:22.7]} 19. Rf3 {[%clk 0:03:57.1]}
19... Qxa3 {[%clk 0:04:13.5]} 20. bxc6 {[%clk 0:03:50.8]} 20... bxc6 {[%clk
0:04:11.7]} 21. Nf1 {[%clk 0:03:27.4]} 21... Ba5 {[%clk 0:04:08.5]} 22. Nxd5
{[%clk 0:03:15.8]} 22... Qxd3 {[%clk 0:04:04]} 23. cxd3 {[%clk 0:03:14.2]} 23...
Bxe1 {[%clk 0:04:03.1]} 24. dxc4 {[%clk 0:03:10.9]} 24... cxd5 {[%clk
0:04:02.2]} 25. c5 {[%clk 0:03:00]} 25... a5 {[%clk 0:03:58.1]} 26. Ng3 {[%clk
0:02:52.8]} 26... Bxg3 {[%clk 0:03:55.6]} 27. Rxg3 {[%clk 0:02:51]} 27... a4
{[%clk 0:03:53]} 28. Bd1 {[%clk 0:02:45.5]} 28... a3 {[%clk 0:03:51.9]} 29. Bb3
{[%clk 0:02:44.1]} 29... Rb8 {[%clk 0:03:49.4]} 30. Ba2 {[%clk 0:02:41.7]} 30...
Rb2 {[%clk 0:03:48.2]} 31. Bxd5 {[%clk 0:02:39.8]} 31... a2 {[%clk 0:03:46.7]}
32. Bxa2 {[%clk 0:02:38]} 32... Rxa2 {[%clk 0:03:45.9]} 33. Kh2 {[%clk
0:02:37.1]} 33... Ra3 {[%clk 0:03:44.6]} 34. Rf3 {[%clk 0:02:34.3]} 34... Rexe3
{[%clk 0:03:42.6]} 35. Rf1 {[%clk 0:02:32.9]} 35... Red3 {[%clk 0:03:40.4]} 36.
Rb1 {[%clk 0:02:30.8]} 36... h6 {[%clk 0:03:38.4]} 37. Rb8+ {[%clk 0:02:25.5]}
37... Kh7 {[%clk 0:03:36.9]} 38. c6 {[%clk 0:02:23.9]} 38... Rac3 {[%clk
0:03:33.8]} 39. Rc8 {[%clk 0:02:19.4]} 39... Rxd4 {[%clk 0:03:32.4]} 40. c7
{[%clk 0:02:18]} 40... Rdc4 {[%clk 0:03:31.7]} 0-1

[Event "Live Chess"]
[Site "Chess.com"]
[Date "2024.06.02"]
[Round "-"]
[White "davigator"]
[Black "Crowded_House"]
[Result "1-0"]
[WhiteElo "2354"]
[BlackElo "1624"]
[TimeControl "300"]
[EndTime "6:28:37 PDT"]
[Termination "davigator won on time"]

1. e4 {[%clk 0:04:56.7]} 1... e6 {[%clk 0:04:58.2]} 2. d4 {[%clk 0:04:54.1]}
2... d5 {[%clk 0:04:57.5]} 3. Nc3 {[%clk 0:04:52.6]} 3... dxe4 {[%clk 0:04:56]}
4. Nxe4 {[%clk 0:04:50.9]} 4... Bd7 {[%clk 0:04:55.7]} 5. Nf3 {[%clk 0:04:48.9]}
5... Bc6 {[%clk 0:04:55.3]} 6. Bd3 {[%clk 0:04:47.6]} 6... Nd7 {[%clk 0:04:55]}
7. Qe2 {[%clk 0:04:45.2]} 7... Ngf6 {[%clk 0:04:54.7]} 8. Ng3 {[%clk 0:04:42.9]}
8... Be7 {[%clk 0:04:51.9]} 9. Bd2 {[%clk 0:04:40.8]} 9... O-O {[%clk 0:04:51]}
10. O-O-O {[%clk 0:04:39.7]} 10... h6 {[%clk 0:04:50.6]} 11. c4 {[%clk
0:04:37.5]} 11... b6 {[%clk 0:04:43.9]} 12. Ne5 {[%clk 0:04:33.1]} 12... Bb7
{[%clk 0:04:35.7]} 13. f4 {[%clk 0:04:31.1]} 13... c5 {[%clk 0:04:28.4]} 14. Bc3
{[%clk 0:04:29.2]} 14... cxd4 {[%clk 0:04:26]} 15. Bxd4 {[%clk 0:04:28.4]} 15...
Qc7 {[%clk 0:04:07.1]} 16. Kb1 {[%clk 0:04:25.5]} 16... Rfd8 {[%clk 0:04:00.1]}
17. Rhe1 {[%clk 0:04:22]} 17... Nc5 {[%clk 0:03:57.2]} 18. Bc2 {[%clk 0:04:20]}
18... Rd6 {[%clk 0:03:49.3]} 19. Bc3 {[%clk 0:03:52.6]} 19... Rad8 {[%clk
0:03:46.9]} 20. Rxd6 {[%clk 0:03:51]} 20... Rxd6 {[%clk 0:03:46.1]} 21. f5
{[%clk 0:03:48.7]} 21... exf5 {[%clk 0:03:25.7]} 22. Nxf5 {[%clk 0:03:47.3]}
22... Re6 {[%clk 0:03:16.1]} 23. Nd4 {[%clk 0:03:37.1]} 23... Rd6 {[%clk
0:03:03.4]} 24. Nb5 {[%clk 0:03:35.6]} 24... Qd8 {[%clk 0:02:59.1]} 25. Nxd6
{[%clk 0:03:34]} 25... Qxd6 {[%clk 0:02:58.7]} 26. Nf3 {[%clk 0:03:25.5]} 26...
Bf8 {[%clk 0:02:51.7]} 27. Be5 {[%clk 0:03:23.6]} 27... Qd7 {[%clk 0:02:40.8]}
28. Bxf6 {[%clk 0:03:21.6]} 28... gxf6 {[%clk 0:02:39.5]} 29. Rd1 {[%clk
0:03:16.6]} 29... Qc7 {[%clk 0:02:31]} 30. g3 {[%clk 0:03:04.8]} 30... Bxf3
{[%clk 0:02:21.3]} 31. Qxf3 {[%clk 0:03:03.1]} 31... Qe5 {[%clk 0:02:20.3]} 32.
b4 {[%clk 0:02:57.5]} 32... Ne6 {[%clk 0:02:17.5]} 33. Qd3 {[%clk 0:02:56.1]}
33... Bg7 {[%clk 0:02:05.7]} 34. a3 {[%clk 0:02:53.6]} 34... f5 {[%clk
0:02:04.6]} 35. Kc1 {[%clk 0:02:50.2]} 35... Qa1+ {[%clk 0:02:00.9]} 36. Kd2
{[%clk 0:02:49.3]} 36... Qf6 {[%clk 0:01:55.7]} 37. Rf1 {[%clk 0:02:46.3]} 37...
Qg5+ {[%clk 0:01:53.6]} 38. Kd1 {[%clk 0:02:44]} 38... Qg4+ {[%clk 0:01:52]} 39.
Kc1 {[%clk 0:02:37.8]} 39... Qg5+ {[%clk 0:01:51.2]} 40. Kb1 {[%clk 0:02:35.2]}
40... Qf6 {[%clk 0:01:50.2]} 41. Kc1 {[%clk 0:02:34.5]} 41... Qg5+ {[%clk
0:01:48.3]} 42. Qd2 {[%clk 0:02:32]} 42... Qf6 {[%clk 0:01:47]} 43. Kd1 {[%clk
0:02:29.4]} 43... Qa1+ {[%clk 0:01:41.3]} 44. Ke2 {[%clk 0:02:26.3]} 44... Qxa3
{[%clk 0:01:40]} 45. Rxf5 {[%clk 0:02:22.5]} 45... Qa2 {[%clk 0:01:24.1]} 46.
Qd3 {[%clk 0:02:07.2]} 46... Qb2 {[%clk 0:01:13.5]} 47. Rd5 {[%clk 0:02:00.2]}
47... Qxb4 {[%clk 0:00:58.5]} 48. h4 {[%clk 0:01:53]} 48... Qe7 {[%clk
0:00:54.6]} 49. Kf2 {[%clk 0:01:50.4]} 49... Nc5 {[%clk 0:00:51.6]} 50. Qh7+
{[%clk 0:01:46.3]} 50... Kf8 {[%clk 0:00:50.5]} 51. Qf5 {[%clk 0:01:42.8]} 51...
Qf6 {[%clk 0:00:40.4]} 52. Kg2 {[%clk 0:01:36.7]} 52... Qxf5 {[%clk 0:00:38.9]}
53. Bxf5 {[%clk 0:01:35.3]} 53... a5 {[%clk 0:00:33.9]} 54. Rd6 {[%clk
0:01:32.9]} 54... a4 {[%clk 0:00:29.5]} 55. Rxb6 {[%clk 0:01:31.5]} 55... a3
{[%clk 0:00:28.4]} 56. Rb8+ {[%clk 0:01:30.3]} 56... Ke7 {[%clk 0:00:27.1]} 57.
Ra8 {[%clk 0:01:30.2]} 57... Bb2 {[%clk 0:00:21.9]} 58. Bg4 {[%clk 0:01:28.5]}
58... Ne4 {[%clk 0:00:19.4]} 59. Ra7+ {[%clk 0:01:19.5]} 59... Kf6 {[%clk
0:00:17.9]} 60. Bh5 {[%clk 0:01:16.8]} 60... Nd2 {[%clk 0:00:15.8]} 61. Rxf7+
{[%clk 0:01:10.7]} 61... Ke6 {[%clk 0:00:14.9]} 62. Ra7 {[%clk 0:01:08.8]} 62...
Nxc4 {[%clk 0:00:13.4]} 63. Bf7+ {[%clk 0:01:07.7]} 63... Kd6 {[%clk 0:00:10.8]}
64. Bxc4 {[%clk 0:01:07.4]} 64... Kc5 {[%clk 0:00:10.1]} 65. Ba2 {[%clk
0:01:06.6]} 65... Kb4 {[%clk 0:00:09.4]} 66. Rh7 {[%clk 0:01:04.6]} 66... Bc1
{[%clk 0:00:07.2]} 67. Rb7+ {[%clk 0:01:00.7]} 67... Kc3 {[%clk 0:00:06.3]} 68.
Kf3 {[%clk 0:00:59.8]} 68... Bd2 {[%clk 0:00:02.8]} 69. g4 {[%clk 0:00:58.7]}
69... Bc1 {[%clk 0:00:01.2]} 70. Ke4 {[%clk 0:00:56.1]} 70... Bg5 {[%clk
0:00:00.3]} 71. hxg5 {[%clk 0:00:54.7]} 1-0